Cogmind - Beta 14 @@@ ROGUE MODE // 2025.04.24 @ 21:24:49 Player: r@sin Result: Destroyed by D-53 Grenadier with Mini Grenade Launcher Performance ------------- Evolutions (0) 0 Regions Visited (4) 800 Robots Destroyed (28) 140 Value Destroyed (679) 679 Prototype IDs (0) 0 Alien Tech Used (0) 0 Bonus (0) 0 TOTAL SCORE: 1619 Bonus ------- None Cogmind --------- Core Integrity 0/250 Matter 300/300 Energy 100/100 System Corruption 0% Temperature Cool (0) Movement Treading (160) Location -9/Mines Parts ------- > --- POWER (1) -------- (None) > --- PROPULSION (2) --- Light Treads > --- UTILITY (2) ------ Medium Storage Unit Weapon Shielding > --- WEAPON (2) ------- Particle Gun Beamcaster > --- INVENTORY (10) --- Ion Engine Light Nuclear Core Light Treads Aluminum Leg Compact Wheel Improved Heat Sink Improved Heat Sink Targeting Computer Light Armor Plating Flail Peak State ------------ > --- POWER ------------ Improved Ion Engine > --- PROPULSION ------- Light Treads Light Treads > --- UTILITY ---------- Medium Storage Unit Weapon Shielding > --- WEAPON ----------- Particle Gun Beamcaster > --- INVENTORY -------- Ion Engine Light Nuclear Core Light Treads Aluminum Leg Compact Wheel Improved Heat Sink Improved Heat Sink Targeting Computer Light Armor Plating Assault Rifle [Rating: 14] Favorites ----------- Power Improved Ion Engine Engine Improved Ion Engine Propulsion Light Treads Treads Light Treads Utility Medium Storage Unit Device Heat Sink Storage Medium Storage Unit Protection Weapon Shielding Weapon Particle Gun Energy Gun Particle Gun Ballistic Gun Assault Rifle Build | -11 -10 -10 -10 -9 ------- Run | Yrd Mat Min Exi Min Slots Evolved . | . . . . . Power . | . . . . . Propulsion . | . . . . . Utility . | . . . . . Weapon . | . . . . . Parts Attached 22 | 6 4 8 . 4 Power 6 | 1 1 1 . 3 Engine 6 | 1 1 1 . 3 Core . | . . . . . Reactor . | . . . . . Propulsion 6 | 2 . 3 . 1 Treads 6 | 2 . 3 . 1 Leg . | . . . . . Wheel . | . . . . . Hover . | . . . . . Flight . | . . . . . Utility 6 | 1 3 2 . . Device 2 | . 1 1 . . Storage 2 | 1 1 . . . Processor . | . . . . . Hackware . | . . . . . Protection 2 | . 1 1 . . Artifact . | . . . . . Weapon 4 | 2 . 2 . . Energy Gun 3 | 1 . 2 . . Energy Cannon . | . . . . . Ballistic Gun 1 | 1 . . . . Ballistic Cannon . | . . . . . Launcher . | . . . . . Special Weapon . | . . . . . Impact Weapon . | . . . . . Slashing Weapon . | . . . . . Piercing Weapon . | . . . . . Special Melee Weapon . | . . . . . Unidentified Prototypes . | . . . . . Parts Lost 5 | . . 3 . 2 Power 1 | . . . . 1 Propulsion 3 | . . 2 . 1 Utility 1 | . . 1 . . Weapon . | . . . . . Highest Loss Streak 3 | . . 3 . 1 To Critical Strikes . | . . . . . Average Slot Usage (%) 97 | . 96 99 100 92 Engine 13 | . 13 14 14 13 Treads 26 | . 28 27 28 21 Storage 14 | . 14 14 14 14 Protection 13 | . 9 13 14 14 Energy Gun 21 | . 14 17 28 28 Ballistic Gun 6 | . 14 10 . . Peak Build Rating 14 | 6 8 14 14 14 Average Rating 10 | 4 7 9 14 12 On Entrance 8 | . 6 8 14 14 Naked Turns . | . . . . . Heaviest Build 26 | 14 24 26 26 26 Greatest Support 40 | 40 40 40 40 40 Greatest Overweight (x) 6 | . . 6 . 1 Average Overweight (x) . | . . . . . Largest Inventory Capacity 10 | 8 10 10 10 10 Average Capacity 9 | 7 9 10 10 10 Most Carried 10 | 4 10 10 10 10 Average Carried 9 | 2 6 9 10 9 Final Capacity 10 | 8 10 10 10 10 Final Carried 10 | 4 10 10 10 10 Class Distribution -------------------- 57% | Scavenger-Mutant 42% | Mutant Dominant Class ---------------- Mutant | -10/Materials Mutant | -10/Mines Scavenger-Mutant | -10/Exiles Scavenger-Mutant | -9/Mines Resources | -11 -10 -10 -10 -9 ----------- Run | Yrd Mat Min Exi Min Matter Collected 554 | 133 226 155 . 40 Remotely . | . . . . . Salvage Created 817 | . 252 364 . 201 Parts 56 | . 15 24 . 17 Haulers Intercepted . | . . . . . Recyclers Shooed 1 | . 1 . . . Parts Field Recycled . | . . . . . Retrieved Matter . | . . . . . Parts Self-Destructed . | . . . . . Prevented . | . . . . . Kills | -11 -10 -10 -10 -9 ------- Run | Yrd Mat Min Exi Min Combat Hostiles Destroyed 25 | . 5 10 . 10 Guns 25 | . 5 10 . 10 Classes Destroyed 5 | . 2 3 . . Worker 1 | . . 1 . . Watcher 2 | . 2 . . . Swarmer 12 | . . 4 . 8 Grunt 11 | . 5 4 . 2 Sentry 2 | . . 2 . . Best Kill Streak 4 | . 3 3 . 4 Combat Bots Only 4 | . 2 3 . 4 Max Kills in Single Turn 2 | . 1 1 . 2 Gunslinging . | . . . . . Exploded . | . . . . . Melee . | . . . . . Uniques/NPCs Destroyed . | . . . . . Combat | -11 -10 -10 -10 -9 -------- Run | Yrd Mat Min Exi Min Hostile Shots Fired 126 | . 35 54 . 37 Missed 31 | . 10 13 . 8 Damage Taken 1213 | . 329 534 . 350 Core 256 | . 40 102 . 114 Absorbed by Shields . | . . . . . Redirected to Shielding 79 | . 17 50 . 12 Regen/Repaired (Parts) 31 | . 31 . . . Core Remaining (%) 100 | 100 . . . . Volleys Fired 71 | . 24 30 . 17 Largest 2 | . 2 2 . 2 Hottest 140 | . 70 140 . 140 Shots Fired 135 | . 48 60 . 27 Gun 135 | . 48 60 . 27 Cannon . | . . . . . Launcher . | . . . . . Special . | . . . . . Kinetic 48 | . 24 24 . . Thermal 87 | . 24 36 . 27 Explosive . | . . . . . Electromagnetic . | . . . . . Robot Hit Streak 15 | . 9 15 . 5 Robot Miss Streak 5 | . 3 3 . 5 Penetration Max . | . . . . . Secondary Targets . | . . . . . Shots Hit Robots 86 | . 30 42 . 14 Core Hits 42 | . 13 18 . 11 Critical Kills 1 | . 1 . . . Critical Parts Destroyed 1 | . . 1 . . Critical Strikes 10 | . 4 4 . 2 Burn 8 | . 3 3 . 2 Destroy 2 | . 1 1 . . Melee Attacks . | . . . . . Impact . | . . . . . Slashing . | . . . . . Piercing . | . . . . . Sneak Attacks . | . . . . . Combat Hostiles . | . . . . . Follow-up Attacks . | . . . . . Damage Inflicted 1239 | . 388 560 . 291 Guns 1239 | . 388 560 . 291 Cannons . | . . . . . Explosions . | . . . . . Melee . | . . . . . Ramming . | . . . . . Kinetic 469 | . 214 255 . . Thermal 770 | . 174 305 . 291 Explosive . | . . . . . Electromagnetic . | . . . . . Impact . | . . . . . Slashing . | . . . . . Piercing . | . . . . . Highest Corruption . | . . . . . Average Corruption . | . . . . . Corruption Purged . | . . . . . Corruption Blocked . | . . . . . Overload Shots . | . . . . . Overflow Damage . | . . . . . Projectiles . | . . . . . Explosions . | . . . . . Melee . | . . . . . Knockbacks . | . . . . . Impact . | . . . . . Kinetic . | . . . . . Secondary . | . . . . . Self-Inflicted Damage . | . . . . . Shots . | . . . . . Rammed . | . . . . . Targets Rammed . | . . . . . Kicked . | . . . . . Crushed . | . . . . . Highest Temperature 518 | . 195 486 . 518 Average Temperature 118 | . 52 106 . 199 Received Heat Transfer 405 | . 186 210 . 9 Effects 11 | . . 3 . 8 Shutdowns 3 | . . 1 . 2 Energy Bleed 1 | . . . . 1 Interference 4 | . . 1 . 3 Short Circuit 1 | . . . . 1 Damage (minor) 2 | . . 1 . 1 Siege Activations . | . . . . . Robots Corrupted . | . . . . . Combat Hostiles . | . . . . . Parts Fried . | . . . . . Impact Corruptions . | . . . . . Robots Melted . | . . . . . Combat Hostiles . | . . . . . Parts Melted 5 | . 1 . . 4 Heat Transferred 2516 | . 740 1073 . 703 Parts Sabotaged . | . . . . . Parts Stolen . | . . . . . Parts Stripped . | . . . . . Power Chain Reactions . | . . . . . Alert | -11 -10 -10 -10 -9 ------- Run | Yrd Mat Min Exi Min Peak Influence 235 | . 100 89 . 235 Initial 24 | . . 24 . . Average 49 | . 28 48 . 74 Maximum Alert Level 1 | . . . . 1 Low Security (%) 98 | 100 100 100 . 95 Level 1 1 | . . . . 4 Level 2 . | . . . . . Level 3 . | . . . . . Level 4 . | . . . . . Level 5 . | . . . . . High Security . | . . . . . Max Security . | . . . . . Squads Dispatched 2 | . 2 . . . Investigation . | . . . . . Extermination . | . . . . . Reinforcement 2 | . 2 . . . Assault . | . . . . . Garrison . | . . . . . Intercept . | . . . . . Searches Triggered . | . . . . . Construction Impeded . | . . . . . Haulers Reinforced . | . . . . . Active Scanning Responses . | . . . . . Cargo Convoy Interrupts . | . . . . . Stealth | -11 -10 -10 -10 -9 --------- Run | Yrd Mat Min Exi Min Distress Signals 1 | . 1 . . . Communications Jammed . | . . . . . Distress Signals . | . . . . . Times Spotted 39 | . 16 12 . 11 Peak Tracking Total 6 | . 6 3 . 4 Tactical Retreats 2 | . . 2 . . Traps | -11 -10 -10 -10 -9 ------- Run | Yrd Mat Min Exi Min Traps Triggered . | . . . . . Indirectly . | . . . . . Trap Hack Attempts . | . . . . . Triggered . | . . . . . Disarmed . | . . . . . Reprogrammed . | . . . . . Reused . | . . . . . Traps Extracted . | . . . . . Installed . | . . . . . Triggered . | . . . . . Machines | -11 -10 -10 -10 -9 ---------- Run | Yrd Mat Min Exi Min Machines Disabled 1 | . . 1 . . Max in Single Turn 1 | . . 1 . . Machines Repaired . | . . . . . Machines Dismantled . | . . . . . Machines Sabotaged . | . . . . . Overloaded Fab Kills . | . . . . . Hacking | -11 -10 -10 -10 -9 --------- Run | Yrd Mat Min Exi Min Machines Accessed 10 | . 5 1 4 . Terminals 5 | . 4 1 . . Fabricators . | . . . . . Repair Stations 1 | . 1 . . . Recycling Units . | . . . . . Scanalyzers . | . . . . . Garrison Access . | . . . . . Total Hacks 15 | . 10 1 4 . Successful 11 | . 7 . 4 . Failed 4 | . 3 1 . . Catastrophic 2 | . 1 1 . . Database Lockouts . | . . . . . Manual 5 | . 4 1 . . Terminals 9 | . 8 1 . . Fabricators . | . . . . . Repair Stations 2 | . 2 . . . Recycling Units . | . . . . . Scanalyzers . | . . . . . Garrison Access . | . . . . . Terminal Hacks 9 | . 5 . 4 . Record 6 | . 2 . 4 . Branch Access Points 1 | . 1 . . . Unreport Threat 1 | . 1 . . . Zone Layout 1 | . 1 . . . Fabricator Hacks . | . . . . . Repair Station Hacks 2 | . 2 . . . Scan Component 1 | . 1 . . . Repair 1 | . 1 . . . Recycling Unit Hacks . | . . . . . Scanalyzer . | . . . . . Garrison Access Hacks . | . . . . . Unauthorized Hacks . | . . . . . Terminals . | . . . . . Fabricators . | . . . . . Repair Stations . | . . . . . Recycling Units . | . . . . . Scanalyzers . | . . . . . Garrison Access . | . . . . . Data Cores Recovered . | . . . . . Used . | . . . . . Hacking Detections 1 | . 1 . . . Full Trace Events . | . . . . . Feedback Events . | . . . . . Feedback Blocked . | . . . . . Robot Schematics Acquired . | . . . . . Robots Built . | . . . . . Authchips . | . . . . . Time . | . . . . . Total Robot Build Rating . | . . . . . Part Schematics Acquired . | . . . . . Parts Built . | . . . . . Authchips . | . . . . . Time . | . . . . . Total Part Build Rating . | . . . . . Parts Repaired 1 | . 1 . . . Time 26 | . 26 . . . Parts Recycled . | . . . . . Recycled Matter . | . . . . . Retrieved Matter . | . . . . . Retrieved Components . | . . . . . Parts Scanalyzed . | . . . . . Part Schematics Acquired . | . . . . . Parts Damaged . | . . . . . Bothacking | -11 -10 -10 -10 -9 ------------ Run | Yrd Mat Min Exi Min Used RIF Installer . | . . . . . Robots Hacked . | . . . . . Non-combat . | . . . . . Combat . | . . . . . Robot Hacks Applied . | . . . . . Relay Couplers Released . | . . . . . Fabnet Peak Effective % . | . . . . . Robots Rewired . | . . . . . Allies Hacked . | . . . . . Hacks Repelled . | . . . . . Allies | -11 -10 -10 -10 -9 -------- Run | Yrd Mat Min Exi Min Total Allies . | . . . . . Largest Group . | . . . . . Highest-Rated Group . | . . . . . Highest-Rated Ally . | . . . . . Total Orders . | . . . . . Ally Attacks . | . . . . . Total Damage . | . . . . . Kills . | . . . . . Allies Corrupted . | . . . . . Allies Melted . | . . . . . Intel | -11 -10 -10 -10 -9 ------- Run | Yrd Mat Min Exi Min Robot Analysis Total . | . . . . . Derelict Logs Recovered 2 | . . 2 . . Drone Launches . | . . . . . Drone Recoveries . | . . . . . Exploration | -11 -10 -10 -10 -9 ------------- Run | Yrd Mat Min Exi Min Turns Passed 3629 | 76 586 1480 783 704 Spaces Moved 1951 | 42 287 802 490 330 Core 4 | 3 . 1 . . Treads 1947 | 39 287 801 490 330 Legs . | . . . . . Wheels . | . . . . . Hover . | . . . . . Flight . | . . . . . Fastest Speed 50 | 50 160 160 160 160 Average Speed 165 | 152 160 160 160 194 Slowest Speed 350 | 160 160 350 160 240 Overloaded Moves . | . . . . . Propulsion Burnouts . | . . . . . Robots Hopped . | . . . . . Cave-ins Triggered . | . . . . . Exploration Rate (%) 65 | 6 57 98 94 70 Regions Visited 4 Branch Regions 3 Pre-discovered Areas . | . . . . . Known Exits Taken 1 | . 1 . . . Unknown Exits Taken 3 | 1 . 1 1 . Scrap Searched 3 | . . 2 . 1 Spaces Dug . | . . . . . Terrain Destroyed . | . . . . . Melee . | . . . . . Projectile . | . . . . . AOE . | . . . . . Terrain Rammed . | . . . . . Walls Destroyed . | . . . . . Machines Disabled . | . . . . . Actions | -11 -10 -10 -10 -9 --------- Run | Yrd Mat Min Exi Min Total 2213 | 51 366 940 489 367 Wait 135 | . 41 85 . 9 Move 1947 | 41 286 801 489 330 Hop . | . . . . . Pick Up 18 | 4 7 5 . 2 Fast Attach 17 | 6 3 5 . 3 Attach 3 | . 1 1 . 1 Detach 4 | . 2 2 . . Swap 2 | . . 2 . . Drop 16 | . 2 9 . 5 Fire 71 | . 24 30 . 17 Melee . | . . . . . Ram . | . . . . . Kick . | . . . . . Crush . | . . . . . Escape Stasis . | . . . . . Rewire . | . . . . . Trap . | . . . . . Miscellaneous . | . . . . . Route ------- -11/Scrapyard -10/Materials (discovered 3 exits: [*Mat] / *Min x2) -10/Mines (discovered 3 exits: [*Mat x2] / *Exi) -10/Exiles (discovered 2 exits: [*Min x2]) -9/Mines (discovered 1 exit: [*Mat]) History --------- Turn | Location | Event 4 | -11/Scrapyard | Discovered new exit (range 15) 77 | -11/Scrapyard | Entered Materials 233 | -10/Materials | Discovered new exit (range 14) 305 | -10/Materials | Build established: Mutant 354 | -10/Materials | Repaired Ion Engine 438 | -10/Materials | Identified exit to Mines 477 | -10/Materials | Discovered new exit (range 9) 663 | -10/Materials | Entered Mines 668 | -10/Mines | Met a Derelict bent on vengeance 1180 | -10/Mines | Lost 3 parts (2n1u) 1236 | -10/Mines | Discovered new exit (range 5) 1327 | -10/Mines | Deemed a non-threat by the Exiles lab entrance 1327 | -10/Mines | Discovered new exit (range 5) 1524 | -10/Mines | Core integrity fell below 50% 1749 | -10/Mines | Learned location of 1 exit from Materials 1762 | -10/Mines | Learned 2 Materials zone layouts 1783 | -10/Mines | Discovered new exit (range 14) 1846 | -10/Mines | Build established: Scavenger-Mutant 2143 | -10/Mines | Entered Exiles 2143 | -10/Exiles | Found Exiles lab abandoned 2177 | -10/Exiles | Discovered new exit (range 14) 2904 | -10/Exiles | Discovered new exit (range 12) 2926 | -10/Exiles | Entered Mines 3278 | -9/Mines | Discovered new exit (range 8) 3617 | -9/Mines | Assembled infested the area 3629 | -9/Mines | Core integrity fell below 20% 3630 | -9/Mines | Destroyed by D-53 Grenadier with Mini Grenade Launcher Last Messages --------------- 03290_ S-10 Pest destroyed. 03294_ Overheating: Energy bleed (-55). 03296_ S-10 Pest suffers critical hit (Burn). 03296_ S-10 Pest destroyed. 03300_ Overheating: Beamcaster damaged (-37). 03301_ Dropped Ion Engine. 03304_ Overheating: System interference. 03304_ Particle Gun temporarily disabled. 03305_ Acquired Lgt. Ion Engine. 03306_ Overheating: System interference. 03306_ Beamcaster temporarily disabled. 03313_ Acquired 10 matter. 03404_ K-01 Serf collects debris. 03617_ ALERT: Infestation in the mines, dispatching Demolisher response squad. 03628_ C-30 ARC bursts open, deploying its payload. 03628_ D-53 Grenadier unfolds itself. 03628_ T-07 Excavator destroyed. 03628_ Lgt. Ion Engine destroyed. Map ----- +----------------------------------------------------+ | | | | | | | ?????????????????????????????????????????????????? | | ?????????????????????????????????????????????????? | | ?????????????????????????????????????????????????? | | ?????????????????????????????????????????????????? | | ?????????????????????????????????????????????????? | | ?????????????????????????????????????????????????? | | ?????????????????????????????????????????????????? | | ?????????????????????????????????????????????????? | | ?????????????????????????????????????????????????? | | ####?????????????????????????????????????????????? | | #?????????????????????????????????????????????? | | #??????????????#??????????????????????????????? | | # ##?????????????# ?????????????????????????????? | | # #?????????????# ??###????????????????????????? | | # #????????#????# ## ##??????????????????????? | | # #????????# ##?# # ##?????????????????????? | | #????????# u # ##????????????????????? | | ##?????????? ##???????????????????? | | ##????????????? ##??????????????????? | | ##???????????????? d%d #??????????????????? | | #??????????????????? #??????????????????? | | #???????????????????## | #??????????????????? | | ##???????????????????# @ ##?????????????????? | | #????????????????????# ##????????????????? | | ?????????????????????# #????????????????? | | ?????????????????????# #????????????????? | | ?????????????????????#### ##????????????????? | | ???????????????????##### ###?????????????????? | | ??????????????????## ##???????????????????? | | ??????????####????# #????????????????????? | | ?????????## ##???## #????????????????????? | | ????????## ##???### #????????????????????? | | ????????# #?????## ##????????????????????? | | ????????# ##?????## ##?????????????????????? | | ????????# ##?????# ##??????????????????????? | | ##???????# ##????# #???????????????????????? | | ##?????## ###### ########????????????????? | | #????## #?????????????? | | ##??## ########## ####????????????????? | | #### ##??????????????????????????????? | | ## ##???????????????????????????????? | | ##????????????????????????????????? | | #####?????????????????????????????????? | | ### ##?????????????????????????????????????? | | ##?## ##??????????????????????????????????????? | | #??## ##??????????????????????????????????????? | | ??## #####??????????????????????????????????? | +----------------------------------------------------+ Best States ------------- Heat Dissipation 39 Energy Generation 12 Energy Capacity 265 Matter Stores 300 Matter Capacity 300 Sight Range 16 Terrain Scan Density 10 Propulsion Shielding 33 Weapon Shielding 33 Evasion (%) 40 Recoil Reduction 2 Item Schematics ----------------- None Robot Schematics ------------------ None Fabricated ------------ Nothing Alien Tech Used ----------------- None Achievements -------------- None Challenges ------------ None Game ------ Seed QuantumDynamicSuit Manual? 0 Play Time 00:19:39 Cumulative 17.7 hours Start 2025.04.24 @ 21:07:54 End 2025.04.24 @ 21:24:49 Sessions 1 Manual Loads 0 Difficulty Rogue Special Mode None Game No. 20 Rogue 13 Adventurer 7 Explorer 0 Win Type - Total 2 Types 1/0/1/0/0/0/0/0/0 Lore% 8 Gallery% 23 Achievement% 23 Wizard Run 0 Options --------- Layout 1 ASCII 0 Keyboard 1 Movement Vi Keybinds 0 Fullscreen 1 Font 24/Smallcaps Map View 50x35 Zoom Use 0% Tactical HUD 1 Map Filters NONE Filters NONE Steam 1 RUN: 346bddbe-a965-4df9-8e46-0b5259978b82